lending/lending_fUSD_20250501
["ID","MTS","AMOUNT","RATE_DAILY","PERIOD"]
[359526607,1746092612050,-1900.92823095,0.00019996,2]
[359526608,1746092612076,-1900.92823095,0.00019996,2]
[359526609,1746092612103,-1900.92823095,0.00019996,2]
[359526610,1746092612129,-1900.92823095,0.00019996,2]
[359526611,1746092612156,-1900.92823095,0.00019996,2]
[359526612,1746092612184,-1900.92823095,0.00019996,2]
[359526613,1746092612211,-1900.92823095,0.00019996,2]
[359526614,1746092612493,-1900.92823095,0.00019996,2]
[359526615,1746092612519,-1900.92823095,0.00019996,2]
[359526616,1746092612546,-1900.92823095,0.00019996,2]
[359526617,1746092612573,-1900.92823095,0.00019996,2]
[359526618,1746092612599,-1900.92823095,0.00019996,2]
[359526619,1746092612627,-1900.92823095,0.00019996,2]
[359526620,1746092612654,-1900.92823095,0.00019996,2]
[359526621,1746092612682,-1900.92823095,0.00019996,2]
[359526622,1746092612709,-1900.92823095,0.00019996,2]
[359526623,1746092612736,-1900.92823095,0.00019996,2]
[359526624,1746092612764,-1900.92823095,0.00019996,2]
[359526625,1746092612791,-1900.92823095,0.00019996,2]
[359526626,1746092612817,-1900.92823095,0.00019996,2]
[359526627,1746092612844,-1900.92823095,0.00019996,2]
[359526628,1746092612870,-1900.92823095,0.00019996,2]
[359526629,1746092612897,-1900.92823095,0.00019996,2]
[359526630,1746092612923,-1900.92823095,0.00019996,2]
[359526631,1746092612948,-1900.92823095,0.00019996,2]
[359526632,1746092612974,-1900.92823095,0.00019996,2]
[359526633,1746092612998,-1900.92823095,0.00019996,2]
[359526634,1746092613024,-1900.92823095,0.00019996,2]
[359526635,1746092613051,-1900.92823095,0.00019996,2]
[359526636,1746092613077,-1629.36705508,0.00019996,2]
[359526637,1746092613105,-1629.36705508,0.00019996,2]
[359526638,1746092613133,-1629.36705508,0.00019996,2]
[359526639,1746092613161,-1629.36705508,0.00019996,2]
[359526640,1746092613192,-1629.36705508,0.00019996,2]
[359526641,1746092613220,-1629.36705508,0.00019996,2]
[359526642,1746092613248,-1629.36705508,0.00019996,2]
[359526643,1746092613275,-596483.78664292,0.0002,2]
[359526644,1746092624821,-2000.0,0.0002,2]
[359526645,1746092629137,1427.86974882,0.00019897,2]
[359526752,1746092773645,-536.189266,0.00019796,2]
[359526753,1746092773669,-200.0,0.00019846,2]
[359526754,1746092773697,-300.0,0.00019896,2]
[359526755,1746092773721,-63.810734,0.00019897,2]
[359526756,1746092786511,-676.72,0.00019872,2]
[359526757,1746092786534,-1323.28,0.00019897,2]
[359526758,1746092797556,-2000.0,0.00019897,2]
[359526880,1746092808273,-263.94051669,0.00019846,2]
[359526881,1746092808376,36.05948331,0.00019872,2]
[359526882,1746092817680,-2000.0,0.00019872,2]
[359526886,1746092838934,-300.0,0.00019871,2]
[359526887,1746092838957,-1.0,0.00019872,2]
[359526888,1746092847278,-2000.0,0.00019872,2]
[359526889,1746092855764,-2000.0,0.00019872,2]
[359526890,1746092863185,-2000.0,0.00019872,2]
[359526891,1746092871284,630.3,0.00018124,2]
[359526892,1746092871413,-2000.0,0.00019872,2]
[359526893,1746092879472,-2000.0,0.00019872,2]
[359526894,1746092886327,-2000.0,0.00019872,2]
[359526895,1746092893838,-2000.0,0.00019872,2]
[359526898,1746092901177,-2000.0,0.00019872,2]
[359526899,1746092908761,-2000.0,0.00019872,2]
[359526903,1746092916320,-2000.0,0.00019872,2]
[359526905,1746092924554,-1862.94051669,0.00019872,2]
[359526906,1746092924576,-137.05948331,0.00019897,2]
[359526913,1746093032200,-536.189266,0.00019796,2]
[359526914,1746093032211,-623.68888004,0.00019896,2]
[359526915,1746093032285,-256.976238,0.00019896,2]
[359526916,1746093033703,-319.33488196,0.00019896,2]
[359526917,1746093033714,-300.0,0.00019896,2]
[359526918,1746093033726,-1050.17545591,0.00019897,2]
[359526919,1746093033740,-116.99197796,0.00019897,2]
[359526920,1746093033751,-346.7742,0.00019897,2]
[359526921,1746093033762,-7881.9162,0.00019897,2]
[359526923,1746093033773,-166.06101562,0.000199,2]
[359526925,1746093033785,-200.0,0.00019912,2]
[359526927,1746093033796,-150.0,0.00019973,2]
[359526929,1746093033807,-500.0,0.00019973,2]
[359526931,1746093033818,-298.18574467,0.0001999,2]
[359526933,1746093033830,-16526.37,0.0001999,2]
[359526935,1746093033842,-16526.37,0.0001999,2]
[359526937,1746093033853,-500.0,0.00019996,2]
[359526939,1746093033864,-500.0,0.00019998,2]
[359526941,1746093033879,-500.0,0.00019998,2]
[359526943,1746093033891,-500.0,0.00019998,2]
[359526945,1746093033901,-500.0,0.00019998,2]
[359526947,1746093033913,-500.0,0.00019998,2]
[359526949,1746093033925,-500.0,0.00019998,2]
[359526951,1746093033937,-500.0,0.00019998,2]
[359526953,1746093033948,-500.0,0.00019998,2]
[359526955,1746093033961,-500.0,0.00019998,2]
[359526957,1746093033972,-500.0,0.00019998,2]
[359526958,1746093033984,-500.0,0.00019998,2]
[359526960,1746093033997,-500.0,0.00019998,2]
[359526962,1746093034008,-500.0,0.00019998,2]
[359526964,1746093034020,-500.0,0.00019998,2]
[359526966,1746093034035,-500.0,0.00019998,2]
[359526968,1746093034048,-500.0,0.00019998,2]
[359526970,1746093034060,-500.0,0.00019998,2]
[359526972,1746093034072,-500.0,0.00019998,2]
[359526974,1746093034085,-500.0,0.00019998,2]
[359526976,1746093034095,-500.0,0.00019998,2]
[359526978,1746093034107,-500.0,0.00019998,2]
[359526979,1746093034125,-500.0,0.00019998,2]
[359526982,1746093034140,-500.0,0.00019998,2]
[359526983,1746093034152,-500.0,0.00019998,2]
[359526986,1746093034163,-500.0,0.00019998,2]
[359526988,1746093034175,-500.0,0.00019998,2]
[359526989,1746093034186,-500.0,0.00019998,2]
[359526992,1746093034197,-500.0,0.00019998,2]
[359526994,1746093034210,-500.0,0.00019998,2]
[359526996,1746093034221,-500.0,0.00019998,2]
[359526998,1746093034232,-500.0,0.00019998,2]
[359526999,1746093034243,-500.0,0.00019998,2]
[359527001,1746093034255,-500.0,0.00019998,2]
[359527004,1746093034266,-500.0,0.00019998,2]
[359527006,1746093034277,-500.0,0.00019998,2]
[359527007,1746093034288,-500.0,0.00019998,2]
[359527009,1746093034299,-500.0,0.00019998,2]
[359527011,1746093034310,-500.0,0.00019998,2]
[359527013,1746093034321,-500.0,0.00019998,2]
[359527015,1746093034333,-500.0,0.00019998,2]
[359527017,1746093034344,-500.0,0.00019998,2]
[359527018,1746093034356,-500.0,0.00019998,2]
[359527019,1746093034367,-500.0,0.00019998,2]
[359527020,1746093034385,-500.0,0.00019998,2]
[359527021,1746093034397,-500.0,0.00019998,2]
[359527022,1746093034408,-500.0,0.00019998,2]
[359527023,1746093034419,-500.0,0.00019998,2]
[359527024,1746093034431,-500.0,0.00019998,2]
[359527025,1746093034444,-500.0,0.00019998,2]
[359527026,1746093034455,-500.0,0.00019998,2]
[359527027,1746093034466,-500.0,0.00019998,2]
[359527028,1746093034477,-500.0,0.00019998,2]
[359527029,1746093034488,-500.0,0.00019998,2]
[359527030,1746093034500,-500.0,0.00019998,2]
[359527031,1746093034510,-500.0,0.00019998,2]
[359527032,1746093034521,-500.0,0.00019998,2]
[359527033,1746093034531,-500.0,0.00019998,2]
[359527034,1746093034544,-500.0,0.00019998,2]
[359527035,1746093034555,-500.0,0.00019998,2]
[359527036,1746093034565,-500.0,0.00019998,2]
[359527037,1746093034575,-500.0,0.00019998,2]
[359527038,1746093034587,-500.0,0.00019998,2]
[359527039,1746093034597,-500.0,0.00019998,2]
[359527040,1746093034607,-500.0,0.00019998,2]
[359527041,1746093034621,-500.0,0.00019998,2]
[359527042,1746093034633,-469.90198605,0.00019998,2]
[359527043,1746093034644,-500.0,0.00019998,2]
[359527044,1746093034655,-500.0,0.00019998,2]
[359527045,1746093034666,-500.0,0.00019998,2]
[359527046,1746093034677,-500.0,0.00019998,2]
[359527047,1746093034687,-500.0,0.00019998,2]
[359527048,1746093034697,-500.0,0.00019998,2]
[359527049,1746093034707,-500.0,0.00019998,2]
[359527050,1746093034718,-500.0,0.00019998,2]
[359527051,1746093034727,-500.0,0.00019998,2]
[359527052,1746093034737,-500.0,0.00019998,2]
[359527053,1746093034747,-500.0,0.00019998,2]
[359527054,1746093034757,-500.0,0.00019998,2]
[359527055,1746093034767,-500.0,0.00019998,2]
[359527056,1746093034777,-500.0,0.00019998,2]
[359527057,1746093034787,-500.0,0.00019998,2]
[359527058,1746093034797,-500.0,0.00019998,2]
[359527059,1746093034806,-500.0,0.00019998,2]
[359527060,1746093034816,-499.99999999,0.00019998,2]
[359527061,1746093034826,-500.0,0.00019999,2]
[359527062,1746093034836,-150.0,0.00019999,2]
[359527063,1746093034846,-500.0,0.00019999,2]
[359527064,1746093034856,-293213.83567256,0.0002,2]
[359527065,1746093034865,-193782.67977884,0.0002,2]
[359527066,1746093034986,-720.04,0.0002,2]
[359527067,1746093034999,-2326.43831506,0.0002,2]
[359527068,1746093035012,-420.5432,0.0002,2]
[359527072,1746093039085,-563.94852852,0.0002,2]
[359527073,1746093039097,-711.441254,0.0002,2]
[359527074,1746093039108,-1728.65,0.0002,2]
[359527075,1746093039138,-1910.85360053,0.0002,2]
[359527076,1746093039245,-833.12260101,0.0002,2]
[359527078,1746093039350,-380.64620579,0.000199,2]
[359527079,1746093039360,-380.75291472,0.0002,2]
[359527147,1746093040960,-365673.68809728,0.0002,2]
[359527150,1746093043233,-2251.19071353,0.0002,2]
[359527155,1746093043286,-820.82694317,0.0002,2]
[359527160,1746093043393,-37112.55107726,0.0002,2]
[359527161,1746093043404,-819.8464559,0.0002,2]
[359527165,1746093046156,-394.38223904,0.0002,2]
[359527166,1746093046210,-14476.95129524,0.0002,2]
[359527167,1746093046424,-4180.0,0.0002,2]
[359527168,1746093046436,-2976.6271205,0.0002,2]
[359527169,1746093046447,-14013.13240416,0.0002,2]
[359527170,1746093046458,-281.0,0.0002,2]
[359527171,1746093046527,-477.71,0.0002,2]
[359527172,1746093046637,-3816.40181716,0.0002,2]
[359527173,1746093077546,-2000.0,0.000199,2]
[359527174,1746093089143,-1547.8395,0.000199,2]
[359527175,1746093089165,-452.1605,0.000199,2]
[359527176,1746093100911,-1985.158851,0.000198,2]
[359527177,1746093100935,-14.841149,0.000199,2]
[359527178,1746093114176,-2000.0,0.000199,2]
[359527179,1746093143370,208.3474961,0.000328,60]
[359527180,1746093394284,1000.0,0.00019217,2]
[359527181,1746093445019,438.93,0.00019239,2]
[359527182,1746093553949,220.85,0.00019197,2]
[359527183,1746093554339,220.85,0.00028796,120]
[359527184,1746093604964,1500.0,0.00019218,2]
[359527185,1746093765969,162.69,0.00019177,2]
[359527186,1746093813264,23900.0,0.00019177,2]
[359527200,1746093874987,6776.12,0.00019133,2]
[359527206,1746093897943,1704.18,0.00019182,2]
[359527208,1746093943283,1182.95,0.00017237,2]
[359527214,1746093978184,3553.24,0.00019103,2]
[359527216,1746094046887,258.52,0.00019142,2]
[359527217,1746094053814,250.0,0.00019142,2]
[359527218,1746094068219,681.63,0.00019193,2]
[359527219,1746094085147,-1985.158851,0.00019402,2]
[359527220,1746094085183,-1182.95,0.000195,2]
[359527221,1746094085219,-200.0,0.00019559,2]
[359527222,1746094085256,-200.0,0.00019716,2]
[359527223,1746094085290,-178.64,0.00019766,2]
[359527224,1746094085325,-500.0,0.00019845,2]
[359527225,1746094085363,-500.0,0.00019845,2]
[359527226,1746094085397,-261.20295427,0.00019845,2]
[359527227,1746094085434,-1518.96239146,0.00019886,2]
[359527228,1746094085468,-1142.72430725,0.00019895,2]
[359527229,1746094096594,1117.55,0.00019306,2]
[359527230,1746094151169,1057.0,0.00018667,2]
[359527271,1746094205829,1350.06,0.00018672,2]
[359527278,1746094231338,-1222.73,0.00019328,2]
[359527279,1746094231348,-200.0,0.0001933,2]
[359527280,1746094231357,-1222.73,0.00019333,2]
[359527281,1746094231368,-1222.73,0.00019338,2]
[359527282,1746094231377,-1222.73,0.00019343,2]
[359527283,1746094231387,-1222.73,0.00019348,2]
[359527284,1746094231396,-1222.73,0.00019353,2]
[359527285,1746094231405,-1200.0,0.00019357,2]
[359527286,1746094231414,-1222.73,0.00019358,2]
[359527287,1746094231424,-300.0,0.00019362,2]
[359527288,1746094231433,-43.8528332,0.00019363,2]
[359527289,1746094231445,-1178.8771668,0.00019363,2]
[359527290,1746094231455,-1222.73,0.00019369,2]
[359527291,1746094231464,-1222.73,0.00019374,2]
[359527292,1746094231473,-1222.73,0.00019379,2]
[359527293,1746094231482,-1222.73,0.00019384,2]
[359527294,1746094231491,-1222.73,0.00019389,2]
[359527295,1746094231500,-1222.73,0.00019394,2]
[359527296,1746094231509,-1222.73,0.00019399,2]
[359527297,1746094231518,-1222.73,0.00019404,2]
[359527298,1746094231527,-1222.73,0.00019409,2]
[359527299,1746094231537,-940.6020496,0.00019414,2]
[359527300,1746094231549,-282.1279504,0.00019414,2]
[359527301,1746094231558,-1222.73,0.0001942,2]
[359527302,1746094231567,-1222.73,0.00019425,2]
[359527303,1746094231576,-2500.0,0.00019886,2]
[359527304,1746094231586,-1876.28569275,0.00019895,2]
[359527305,1746094231595,-187.16214963,0.00019895,2]
[359527306,1746094231604,-521.51621943,0.00019899,2]
[359527307,1746094231613,-500.0,0.00019899,2]
[359527308,1746094231623,-500.0,0.00019899,2]
[359527309,1746094231633,-500.0,0.00019899,2]
[359527310,1746094231643,-500.0,0.00019899,2]
[359527311,1746094231653,-500.0,0.00019899,2]
[359527313,1746094231663,-500.0,0.00019899,2]
[359527315,1746094231673,-500.0,0.00019899,2]
[359527317,1746094231682,-500.0,0.00019899,2]
[359527318,1746094231691,-224.28137735,0.00019899,2]
[359527320,1746094231700,-40.276851,0.000199,2]
[359527322,1746094231710,-467.0016,0.000199,2]
[359527324,1746094231720,-22835.6483,0.000199,2]
[359527326,1746094231730,-1000.0,0.000199,2]
[359527328,1746094231739,-1547.8395,0.000199,2]
[359527330,1746094231748,-1000.0,0.000199,2]
[359527334,1746094231758,-177.75118209,0.000199,2]
[359527335,1746094231767,-31397.9351,0.000199,2]
[359527337,1746094231777,-166.0610156,0.000199,2]
[359527339,1746094231786,-153.33264665,0.000199,2]
[359527341,1746094231795,-186.86978315,0.00019908,2]
[359527343,1746094231804,-150.0,0.00019964,2]
[359527345,1746094231813,-500.0,0.00019973,2]
[359527347,1746094231822,-500.0,0.00019973,2]
[359527350,1746094231831,-500.0,0.00019973,2]
[359527352,1746094231841,-500.0,0.00019973,2]
[359527354,1746094231850,-508.28233105,0.00019973,2]
[359527356,1746094231860,-502.84836243,0.00019973,2]
[359527358,1746094231869,-504.94248061,0.00019973,2]
[359527360,1746094231879,-501.41990566,0.00019973,2]
[359527362,1746094231888,-511.2749024,0.00019973,2]
[359527364,1746094231897,-554.09,0.00019976,3]
[359527366,1746094231906,-4945.2095415,0.00019986,2]
[359527368,1746094231915,-80680.4659859,0.00019986,2]
[359527370,1746094231924,-4452.9278422,0.00019986,2]
[359527372,1746094231934,-588.86506114,0.00019986,2]
[359527375,1746094231949,-911.57,0.00019986,2]
[359527376,1746094231961,-60477.05063416,0.00019986,2]
[359527378,1746094231970,-200.0,0.00019989,2]
[359527380,1746094231979,-169.4,0.00019999,2]
[359527382,1746094231989,-1389.928,0.00019999,2]
[359527384,1746094231998,-321151.08901435,0.0002,2]
[359527387,1746094232009,-1154.55713743,0.0002,2]
[359527389,1746094232022,-1626.60839758,0.0002,2]
[359527391,1746094232033,-581.51478816,0.0002,2]
[359527415,1746094237399,-11117.76695138,0.0002,2]
[359527416,1746094237501,-2039.41078733,0.0002,2]
[359527417,1746094237606,-322.54883882,0.0002,2]
[359527590,1746094239611,-1166707.5903066,0.0002,2]
[359527593,1746094239639,-684.3960891,0.0002,2]
[359527595,1746094239649,-500.0,0.00020008,2]
[359527597,1746094239659,-200.0,0.00020166,2]
[359527599,1746094239668,-453.3,0.00020389,2]
[359527601,1746094239677,-453.3,0.00020394,2]
[359527603,1746094239687,-453.3,0.00020399,2]
[359527605,1746094239696,-453.3,0.00020405,2]
[359527607,1746094239706,-453.3,0.0002041,2]
[359527609,1746094239716,-453.3,0.00020415,2]
[359527611,1746094239725,-453.3,0.00020421,2]
[359527613,1746094239734,-453.3,0.00020426,2]
[359527615,1746094239744,-453.3,0.00020432,2]
[359527617,1746094239753,-453.3,0.00020437,2]
[359527619,1746094239763,-453.3,0.00020442,2]
[359527621,1746094239772,-453.3,0.00020448,2]
[359527623,1746094239782,-453.3,0.00020453,2]
[359527625,1746094239791,-453.3,0.00020458,2]
[359527627,1746094239801,-453.3,0.00020464,2]
[359527629,1746094239810,-453.3,0.00020469,2]
[359527631,1746094239819,-453.3,0.00020475,2]
[359527633,1746094239828,-453.3,0.0002048,2]
[359527635,1746094239838,-453.3,0.00020485,2]
[359527637,1746094239847,-453.3,0.00020491,2]
[359527639,1746094239856,-644.75,0.00020544,2]
[359527641,1746094239866,-300.0,0.00020567,2]
[359527643,1746094239875,-319.79,0.0002061,2]
[359527645,1746094239885,-200.0,0.0002071,2]
[359527647,1746094239894,-200.0,0.0002081,2]
[359527649,1746094239903,-4970.17875926,0.000209,4]
[359527651,1746094239912,-200.0,0.0002091,2]
[359527653,1746094239921,-20000.0,0.00021,2]
[359527655,1746094239931,-350.0,0.00021,2]
[359527657,1746094239941,-500.0,0.00021,2]
[359527659,1746094239950,-420.0,0.00021097,2]
[359527661,1746094239959,-1680.0,0.00021194,2]
[359527663,1746094239968,-200.0,0.00021261,2]
[359527665,1746094239978,-250.0,0.00021261,2]
[359527667,1746094239987,-200.0,0.00021343,2]
[359527669,1746094239996,-250.0,0.00021343,2]
[359527671,1746094240005,-200.0,0.0002145,2]
[359527673,1746094240015,-250.0,0.0002145,2]
[359527675,1746094240024,-1000.0,0.00021619,2]
[359527677,1746094240033,-7314.86831856,0.000217,2]
[359527679,1746094240043,-4970.17875918,0.00021762,5]
[359527681,1746094240052,-1182.95,0.00021764,2]
[359527683,1746094240061,-5053.54823058,0.000218,2]
[359527685,1746094240071,-300.01183641,0.00021835,2]
[359527687,1746094240080,-104208.14279236,0.00021835,2]
[359527689,1746094240089,-500.0,0.00021873,2]
[359527691,1746094240098,-500.0,0.00021873,2]
[359527693,1746094240107,-502.13277908,0.00021873,2]
[359527695,1746094240117,-500.0,0.00021873,2]
[359527697,1746094240127,-500.0,0.00021873,2]
[359527699,1746094240136,-500.0,0.00021873,2]
[359527701,1746094240146,-500.0,0.00021873,2]
[359527703,1746094240155,-500.0,0.00021873,2]
[359527705,1746094240164,-500.0,0.00021873,2]
[359527707,1746094240176,-500.68481339,0.00021873,2]
[359527709,1746094240185,-500.0,0.00021873,2]
[359527711,1746094240195,-500.0,0.00021873,2]
[359527713,1746094240204,-500.0,0.00021873,2]
[359527715,1746094240214,-150.0,0.00021917,2]
[359527717,1746094240223,-513.8227512,0.00021918,2]
[359527718,1746094240232,-300.0,0.00021937,2]
[359527721,1746094240241,-150.0,0.00022,2]
[359527722,1746094240250,-500.0,0.00022192,2]
[359527724,1746094240261,-1518.96239146,0.00022332,2]
[359527726,1746094240270,-2900.0,0.000225,15]
[359527728,1746094240279,-34265.62394593,0.000225,2]
[359527730,1746094240289,-4970.17875918,0.00022624,7]
[359527733,1746094240298,-505.41869876,0.0002271,2]
[359527734,1746094240308,-1627.01449967,0.00023,15]
[359527737,1746094240318,-1000.0,0.00023,14]
[359527739,1746094240327,-1503.31289762,0.00023,2]
[359527741,1746094240337,-400.0,0.00023,2]
[359527743,1746094240346,-202.4823363,0.00023,2]
[359527744,1746094240356,-33104.88413377,0.000232,2]
[359527746,1746094240367,-2351.0,0.00023205,2]
[359527749,1746094240377,-150.0,0.00023287,2]
[359527750,1746094240386,-4970.17875918,0.00023486,9]
[359527752,1746094240397,-200.0,0.000235,2]
[359527754,1746094240407,-153.33264661,0.00023567,2]
[359527756,1746094240423,-970.49,0.000237,2]
[359527758,1746094240442,-934.86,0.00023836,2]
[359527760,1746094240452,-34780.36122397,0.00024,2]
[359527762,1746094240461,-985.65582656,0.00024,2]
[359527764,1746094240470,-7745.4860528,0.00024,14]
[359527766,1746094240479,-10676.03916215,0.00024,2]
[359527768,1746094240488,-1000.0,0.00024021,2]
[359527770,1746094240497,-1182.95,0.00024028,2]
[359527772,1746094240506,-186.86978309,0.00024185,2]
[359527774,1746094240515,-407.3691653,0.0002421,2]
[359527776,1746094240524,-3569.31157824,0.0002421,2]
[359527778,1746094240534,-4970.17875918,0.00024348,11]
[359527780,1746094240543,-189743.0,0.000246,2]
[359527782,1746094240552,-181.0,0.0002463,2]
[359527784,1746094240562,-150.0,0.00024657,2]
[359527786,1746094240571,-1000.0,0.00024658,2]
[359527788,1746094240580,-1518.96239146,0.00024778,2]
[359527790,1746094240589,-622974.06497,0.000248,3]
[359527792,1746094240598,-300.0,0.00024873,2]
[359527794,1746094240609,-6181.4315693,0.00024883,2]
[359527796,1746094240618,-91141.5772536,0.00024883,2]
[359527798,1746094240627,-5030.2989946,0.00024883,2]
[359527800,1746094240637,-80421.5703814,0.00024883,2]
[359527802,1746094240646,-591960.737998,0.000249,3]
[359527804,1746094240655,-200.42694169,0.00025,2]
[359527806,1746094240665,-1723.61032466,0.00025,2]
[359527808,1746094240675,-303.21293968,0.00025,2]
[359527810,1746094240686,-200.0,0.00025,2]
[359527812,1746094240695,-2938.59560793,0.00025,2]
[359527814,1746094240705,-1011.95599952,0.00025,2]
[359527816,1746094240714,-150.0,0.00025,2]
[359527818,1746094240723,-150.0,0.00025,2]
[359527820,1746094240732,-150.0,0.00025,2]
[359527822,1746094240742,-450.0,0.00025,2]
[359527824,1746094240751,-5569.0,0.000251,3]
[359527826,1746094240760,-4970.17875918,0.0002521,12]
[359527828,1746094240769,-3292.0,0.00025406,2]
[359527830,1746094240779,-200.68964993,0.00025421,2]
[359527831,1746094240788,-498.7842668,0.00025452,2]
[359527833,1746094240797,-500.0,0.00025452,2]
[359527835,1746094240807,-5569.0,0.000257,5]
[359527837,1746094240816,-150.0,0.00026027,2]
[359527839,1746094240825,-1182.95,0.00026292,2]
[359527841,1746094240834,-1019.0,0.00026301,5]
[359527843,1746094240843,-1719.05522849,0.000264,2]
[359527845,1746094240852,-1000.0,0.00026423,2]
[359527847,1746094240861,-29031.61178925,0.000265,2]
[359527849,1746094240870,-9999.99,0.00026591,2]
[359527851,1746094240878,-175.1,0.00026591,2]
[359527853,1746094240887,-2172.94,0.00026591,2]
[359527855,1746094240896,-150.99,0.00026591,2]
[359527857,1746094240906,-150.99,0.00026591,2]
[359527859,1746094240915,-250.0,0.00026748,2]
[359527861,1746094240924,-500.0,0.00027,2]
[359527863,1746094240933,-1518.96239146,0.00027224,2]
[359527865,1746094240943,-153.33264661,0.00027235,2]
[359527867,1746094240952,-742.0,0.00027306,2]
[359527869,1746094240962,-6077.46897222,0.00027342,2]
[359527871,1746094240971,-931.81498311,0.00027352,2]
[359527873,1746094240980,-1000.0,0.00027352,2]
[359527875,1746094240989,-177.75275273,0.00027352,2]
[359527877,1746094240998,-407.34403053,0.00027352,2]
[359527879,1746094241007,-1000.0,0.00027352,2]
[359527881,1746094241016,-1000.0,0.00027352,2]
[359527883,1746094241026,-1000.0,0.00027352,2]
[359527885,1746094241035,-1000.0,0.00027352,2]
[359527887,1746094241044,-504.14251621,0.00027352,2]
[359527889,1746094241053,-1000.0,0.00027352,2]
[359527891,1746094241063,-502.20572104,0.00027352,2]
[359527893,1746094241072,-536.62501736,0.00027397,2]
[359527895,1746094241081,-150.0,0.00027397,2]
[359527897,1746094241090,-208.06400326,0.00027397,2]
[359527899,1746094241099,-300.0,0.00027397,2]
[359527901,1746094241108,-1000.0,0.00027397,2]
[359527903,1746094241117,-6633.98,0.00027397,2]
[359527905,1746094241127,-174.54,0.00027397,10]
[359527907,1746094241136,-522.64809645,0.000274,2]
[359527909,1746094241146,-167.0,0.00027817,2]
[359527911,1746094241155,-220.0,0.00027918,2]
[359527913,1746094241164,-166.0610156,0.00028457,2]
[359527916,1746094241178,-186.86978309,0.00028462,2]
[359527917,1746094241187,-1182.95,0.00028556,2]
[359527919,1746094241196,-150.0,0.00028767,2]
[359527921,1746094241205,-6633.98,0.00028767,2]
[359527923,1746094241215,-1000.0,0.00028825,2]
[359527925,1746094241224,-550.0,0.00029,2]
[359527927,1746094241233,-1518.96239146,0.0002967,2]
[359527929,1746094241242,-160.0,0.0003,2]
[359527931,1746094241252,-213.0,0.0003,2]
[359527933,1746094241261,-150.0,0.00030136,2]
[359527935,1746094241270,-150.0,0.00030137,2]
[359527937,1746094241279,-6633.98,0.00030137,2]
[359527939,1746094241288,-156.63736674,0.00030719,2]
[359527941,1746094241297,-151.0,0.0003082,2]
[359527943,1746094241307,-207.4,0.0003082,2]
[359527945,1746094241317,-1182.95,0.0003082,2]
[359527947,1746094241326,-153.33264661,0.00030902,2]
[359527949,1746094241335,-150.0,0.0003093,2]
[359527951,1746094241344,-600.0,0.00031,2]
[359527953,1746094241354,-150.0,0.00031506,2]
[359527955,1746094241363,-6633.98,0.00031507,2]
[359527957,1746094241373,-150.0,0.00031723,2]
[359527959,1746094241382,-1518.96239146,0.00032116,2]
[359527961,1746094241391,-151.0,0.00032189,2]
[359527963,1746094241400,-215.0738,0.00032189,2]
[359527965,1746094241409,-166.66,0.00032355,2]
[359527967,1746094241419,-150.0,0.00032516,2]
[359527969,1746094241428,-163.0,0.000327,39]
[359527971,1746094241438,-186.86978309,0.0003274,2]
[359527973,1746094241447,-1092.29508512,0.00032776,2]
[359527974,1746094241456,-200.0,0.000328,2]
[359527976,1746094241466,-396.16628054,0.000328,2]
[359527979,1746094241475,-200.0,0.000328,2]
[359527980,1746094241485,-200.0,0.000328,2]